bitfinex-derivatives/quotes_ETHF0:USTF0_20241005
["timestamp","ask_amount","ask_price","bid_price","bid_amount"]
[1728118530848,2.34516358,2420.0,2419.9,6.23357235]
[1728118531253,1.09805649,2420.0,2419.9,6.23357235]
[1728118531649,1.09805649,2420.0,2419.9,6.2288252]
[1728118532358,1.09805649,2420.0,2419.9,3.3102752]
[1728118532653,1.09805649,2420.0,2419.9,6.2288252]
[1728118533052,1.09805649,2420.0,2419.9,6.5180752]
[1728118533554,1.09805649,2420.0,2419.9,3.3102752]
[1728118533761,1.08890582,2420.0,2419.9,3.3102752]
[1728118534454,1.08890582,2420.0,2419.9,6.5180752]
[1728118535757,1.08890582,2420.0,2419.9,3.3102752]
[1728118536460,1.08890582,2420.0,2419.9,4.29612651]
[1728118536854,1.08890582,2420.0,2419.9,0.79907651]
[1728118537060,1.08890582,2420.0,2419.8,5.41780842]
[1728118537061,4.79405431,2420.0,2419.8,5.41780842]
[1728118537258,5.31591431,2419.9,2419.8,5.41780842]
[1728118537461,3.14711291,2419.9,2419.8,5.41780842]
[1728118537653,5.31591431,2419.9,2419.8,5.41780842]
[1728118538757,5.31591431,2419.9,2419.8,3.60906545]
[1728118538758,5.57430616,2419.9,2419.8,3.60906545]
[1728118539753,5.31591431,2419.9,2419.8,3.60906545]
[1728118540356,4.22700849,2419.9,2419.8,3.60906545]
[1728118540555,5.32890159,2419.9,2419.8,3.60906545]
[1728118541659,3.16010019,2419.9,2419.8,3.60906545]
[1728118542055,3.16010019,2419.9,2419.6,0.28928]
[1728118542363,2.34900019,2419.8,2419.6,0.28928]
[1728118542564,2.34900019,2419.7,2419.6,0.28928]
[1728118543264,1.1018931,2419.7,2419.6,0.28928]
[1728118543466,1.27104742,2419.8,2419.6,0.28928]
[1728118543662,0.67789188,2419.7,2419.6,0.28928]
[1728118543967,1.1015743,2419.7,2419.6,0.28928]
[1728118547764,1.35996318,2419.7,2419.6,0.28928]
[1728118548768,1.1015743,2419.7,2419.6,0.28928]
[1728118549770,1.24659917,2419.8,2419.5,3.85204787]
[1728118549970,1.09937491,2419.7,2419.6,0.28928]
[1728118551369,1.09937491,2419.7,2419.5,3.85204787]
[1728118551370,1.09937491,2419.7,2419.5,3.21113611]
[1728118551567,1.09937491,2419.6,2419.5,3.21113611]
[1728118551969,1.09937491,2419.6,2419.5,7.34393611]
[1728118552770,1.09937491,2419.6,2419.5,7.63323611]
[1728118554766,1.09937491,2419.6,2419.5,8.05903611]
[1728118556279,1.05761704,2419.6,2419.5,8.05903611]
[1728118556570,1.05761704,2419.6,2419.5,9.44362089]
[1728118557567,1.05761704,2419.6,2419.5,11.60858405]
[1728118558372,1.05761704,2419.6,2419.5,9.44362089]
[1728118558571,1.05761704,2419.6,2419.5,11.60858405]
[1728118559175,1.13004587,2419.6,2419.5,11.31928405]
[1728118559471,1.13004587,2419.6,2419.5,11.60858405]
[1728118560677,1.13004587,2419.6,2419.5,11.60856858]
[1728118561377,0.42110307,2419.6,2419.5,11.60856858]
[1728118561577,1.09486798,2419.6,2419.5,11.60856858]
[1728118561876,0.47476287,2419.6,2419.5,14.3776364]
[1728118562070,0.47476287,2419.6,2419.5,10.2448364]
[1728118562562,0.22524428,2419.6,2419.5,10.2448364]
[1728118564476,0.8111,2419.9,2419.7,0.28927]
[1728118565978,0.3898,2419.8,2419.7,0.28927]
[1728118566285,0.3898,2419.8,2419.7,1.67090707]
[1728118566578,0.3898,2419.8,2419.7,0.74075517]
[1728118566879,0.3898,2419.8,2419.7,1.03002517]
[1728118568373,1.69601017,2419.8,2419.7,1.03002517]
[1728118572679,2.3604276,2419.8,2419.7,1.03002517]
[1728118573979,2.77578939,2419.8,2419.7,1.03002517]
[1728118574278,2.77578939,2419.8,2419.7,0.28927]
[1728118576979,1.69601017,2419.8,2419.7,0.28927]
[1728118577287,2.77590322,2419.8,2419.7,0.28927]
[1728118579081,3.03428547,2419.8,2419.6,1.16232191]
[1728118579286,2.64448547,2419.7,2419.6,1.45160191]
[1728118579586,1.3382753,2419.7,2419.6,4.21129673]
[1728118579787,1.3382753,2419.7,2419.6,4.67832832]
[1728118579981,1.3382753,2419.7,2419.6,4.21129673]
[1728118580177,1.07989305,2419.7,2419.6,4.21129673]
[1728118580682,1.07989305,2419.7,2419.6,4.67837411]
[1728118581384,1.07989305,2419.7,2419.6,3.74821207]
[1728118583493,1.07989305,2419.7,2419.6,3.5160522]
[1728118583989,0.41534348,2419.7,2419.6,3.5160522]
[1728118584182,0.41534348,2419.7,2419.6,3.50102176]
[1728118585184,1.11057041,2419.7,2419.6,3.50102176]
[1728118586386,0.3898,2419.8,2419.7,0.28927]
[1728118586587,1.68290768,2419.8,2419.7,1.66153806]
[1728118586786,2.80360141,2419.8,2419.7,1.66153806]
[1728118588086,3.06198279,2419.8,2419.5,6.34589923]
[1728118588394,2.67218279,2419.7,2419.6,3.21174977]
[1728118588589,1.37907511,2419.7,2419.6,3.21174977]
[1728118589291,2.41380141,2419.7,2419.6,1.9198464]
[1728118589483,2.38374008,2419.7,2419.6,1.9198464]
[1728118589689,2.38374008,2419.7,2419.6,2.2091264]
[1728118589888,1.0906324,2419.7,2419.6,2.2091264]
[1728118591900,2.38374008,2419.7,2419.6,2.2091264]
[1728118592792,2.28273333,2419.7,2419.6,1.7419387]
[1728118592991,2.28273333,2419.7,2419.6,2.20914522]
[1728118593197,1.05984096,2419.7,2419.6,2.20914522]
[1728118593695,2.28273333,2419.7,2419.6,2.20914522]
[1728118594095,2.28273333,2419.7,2419.6,0.75648652]
[1728118595901,2.28273333,2419.7,2419.6,0.28928]
[1728118596292,2.28273333,2419.7,2419.6,0.75653269]
[1728118596495,1.05984096,2419.7,2419.5,6.17227042]
[1728118596795,1.05984096,2419.6,2419.5,6.46157042]
[1728118597193,0.40763114,2419.6,2419.5,6.46157042]
[1728118597889,0.40763114,2419.6,2419.5,6.71330456]
[1728118598191,0.40763114,2419.6,2419.5,7.90330456]
[1728118598790,2.5586014,2419.8,2419.5,7.61400456]
[1728118598994,2.5586014,2419.8,2419.7,1.19]
[1728118599189,4.44037285,2419.8,2419.7,1.19]
[1728118599393,4.84096306,2419.8,2419.6,0.18737166]
[1728118599593,2.28236166,2419.7,2419.6,0.18737166]
[1728118599790,2.28236166,2419.7,2419.6,2.90969991]
[1728118599988,1.08059127,2419.7,2419.6,2.90969991]
[1728118602905,2.29246756,2419.7,2419.6,2.90969991]
[1728118603107,2.29246756,2419.7,2419.6,4.09969991]
[1728118604008,2.29246756,2419.7,2419.6,4.09985751]
[1728118604808,2.32720796,2419.7,2419.6,4.09985751]
[1728118605716,2.32722622,2419.7,2419.6,4.09985751]
[1728118608205,2.58560625,2419.7,2419.6,5.46387114]
[1728118608609,1.21187629,2419.7,2419.6,5.46387114]
[1728118608809,2.62038569,2419.7,2419.6,5.46949958]
[1728118609309,2.36200278,2419.7,2419.6,5.28212792]
[1728118609506,2.36200278,2419.7,2419.6,2.98974833]
[1728118609507,4.53080418,2419.7,2419.6,2.98974833]
[1728118609715,9.20664342,2419.7,2419.5,1.06524833]
[1728118610014,1.86907,2419.8,2419.5,1.19]
[1728118610015,5.07384342,2419.6,2419.5,1.19]
[1728118610506,2.62042264,2419.6,2419.3,13.38057116]
[1728118610813,1.62692152,2419.4,2419.3,13.38057116]
[1728118611014,4.24734416,2419.4,2419.3,14.57057116]
[1728118611411,4.24734416,2419.4,2419.3,15.80671913]
[1728118611412,2.62042264,2419.4,2419.3,15.80671913]
[1728118611614,2.62042264,2419.4,2419.3,16.21261913]
[1728118612216,2.36200278,2419.4,2419.3,14.04618506]
[1728118612907,2.78300278,2419.4,2419.3,14.04618506]
[1728118614507,1.57112649,2419.4,2419.3,14.04618506]
[1728118615005,2.80674813,2419.4,2419.3,14.04618506]
[1728118615210,1.52866877,2419.4,2419.3,14.04618506]
[1728118615905,1.52866877,2419.4,2419.3,10.83838506]
[1728118618507,3.14828256,2419.4,2419.3,10.83838506]
[1728118620411,1.52866877,2419.4,2419.3,10.83838506]
[1728118623217,0.421,2419.4,2419.3,14.04618506]
[1728118623417,1.53268989,2419.4,2419.3,14.04618506]
[1728118623818,1.53268989,2419.4,2419.3,10.83838506]
[1728118624010,1.53268989,2419.4,2419.3,14.04618506]
[1728118624215,1.53268989,2419.4,2419.3,13.75686506]
[1728118624420,1.53268989,2419.4,2419.3,14.04618506]
[1728118625025,1.53268989,2419.4,2419.3,10.83838506]
[1728118626321,1.52353689,2419.4,2419.3,10.83838506]
[1728118626517,1.52353689,2419.4,2419.3,10.99053743]
[1728118628418,3.11635586,2419.4,2419.3,10.99053743]
[1728118629425,1.75539835,2419.4,2419.3,10.99053743]
[1728118629620,1.55331225,2419.4,2419.3,10.99053743]
[1728118631221,0.421,2419.4,2419.3,10.99053743]
[1728118631527,1.52412337,2419.4,2419.3,10.99053743]
[1728118632729,1.52409722,2419.4,2419.3,10.99053743]
[1728118633327,1.52407556,2419.4,2419.3,10.99053743]
[1728118633524,1.52407556,2419.4,2419.3,14.19833743]
[1728118634227,1.52407556,2419.4,2419.3,12.71901743]
[1728118634427,6.93048743,2419.4,2419.2,1.08247068]
[1728118634620,6.93048743,2419.4,2419.1,1.08247068]
[1728118634621,6.3809352,2419.3,2419.1,1.08247068]
[1728118634823,1.10307556,2419.2,2419.0,1.47027068]
[1728118635019,2.3656267,2419.1,2419.0,1.08247068]
[1728118635224,6.8953267,2419.1,2419.0,1.08247068]
[1728118635429,6.8953267,2419.1,2418.8,4.43771407]
[1728118635629,1.10307556,2419.0,2418.8,4.43771407]
[1728118635932,1.10307556,2418.9,2418.8,4.03311407]
[1728118636630,1.45147971,2418.9,2418.8,4.03311407]
[1728118638725,1.45128682,2418.9,2418.8,4.03311407]
[1728118640732,1.45128682,2418.9,2418.8,1.86668]
[1728118641734,3.6039,2419.1,2418.8,1.86668]
[1728118642028,0.41953385,2418.9,2418.8,1.86668]
[1728118642332,1.4388273,2418.9,2418.8,1.86668]
[1728118642531,1.4388273,2418.9,2418.8,0.67668]
[1728118643531,1.4388273,2418.9,2418.8,0.28938]
[1728118644629,1.09078801,2418.9,2418.8,0.28938]
[1728118646436,1.04374598,2418.9,2418.8,0.28938]
[1728118647135,1.04374598,2418.9,2418.7,1.19]
[1728118647435,1.45514598,2418.8,2418.7,1.47939]
[1728118648234,1.04374598,2418.8,2418.7,1.47939]
[1728118648942,0.75450209,2418.8,2418.7,5.61379]
[1728118649227,1.3979035,2418.8,2418.7,5.61379]
[1728118649534,0.75450209,2418.8,2418.7,5.61379]
[1728118651232,1.62267099,2419.1,2419.0,0.28936]
[1728118651423,1.62267099,2419.1,2419.0,1.47936]
[1728118651631,2.03504128,2419.1,2419.0,1.47936]
[1728118653334,0.41237029,2419.1,2419.0,1.47936]
[1728118657339,0.4126208,2419.1,2419.0,1.78961623]
[1728118658836,0.67107268,2419.1,2419.0,0.85918944]
[1728118659035,1.37578541,2419.1,2419.0,1.14854944]
[1728118659638,1.11733353,2419.1,2419.0,1.14854944]
[1728118660435,0.42417199,2419.1,2419.0,1.14854944]
[1728118660743,1.10284718,2419.1,2419.0,1.14854944]
[1728118663642,1.08855969,2419.1,2419.0,1.14854944]
[1728118664437,1.08855969,2419.1,2419.0,0.85918944]
[1728118666545,2.01507099,2419.3,2419.0,0.85918944]
[1728118666735,0.66442547,2419.1,2419.0,1.14853944]
[1728118666934,0.41526592,2419.1,2419.0,1.14853944]
[1728118667131,1.07969139,2419.1,2419.0,1.14853944]
[1728118669040,1.07969139,2419.1,2419.0,0.85918944]
[1728118669641,1.07969139,2419.1,2419.0,1.14854944]
[1728118669943,1.07969139,2419.1,2419.0,0.85918944]
[1728118673341,1.07969139,2419.1,2419.0,1.14854944]
[1728118673743,1.07969139,2419.1,2419.0,0.21811255]
[1728118673944,1.07969139,2419.1,2418.9,4.4678]
[1728118674145,1.62267099,2419.2,2419.0,1.19]
[1728118674444,1.06152641,2419.1,2419.0,1.19]
[1728118675943,1.06023141,2419.1,2419.0,1.19]
[1728118677551,2.6829024,2419.1,2419.0,1.19]
[1728118677751,1.06023141,2419.1,2419.0,1.47936]
[1728118678466,2.6829024,2419.1,2419.0,2.8302852]
[1728118678868,3.99020692,2419.1,2419.0,2.8302852]
[1728118679168,4.06297281,2419.1,2419.0,2.8302852]
[1728118679459,4.06297281,2419.1,2419.0,2.5409252]
[1728118680859,4.06297281,2419.1,2419.0,2.54135895]
[1728118681670,4.06297281,2419.1,2419.0,2.83071895]
[1728118682162,4.06297281,2419.1,2419.0,4.45426163]
[1728118684062,4.06297281,2419.1,2419.0,4.16490163]
[1728118684263,2.92997551,2419.1,2419.0,4.16490163]
[1728118684458,4.0410115,2419.1,2419.0,4.45426163]
[1728118685064,4.0410115,2419.1,2419.0,4.45429481]
[1728118685470,4.0410115,2419.1,2419.0,7.66209481]
[1728118686273,4.0410115,2419.1,2419.0,6.03855213]
[1728118686473,4.0410115,2419.1,2419.0,7.66209481]
[1728118687369,4.0410115,2419.1,2419.0,6.03855213]
[1728118688173,4.0410115,2419.1,2419.0,7.66209481]
[1728118688767,4.0410115,2419.1,2419.0,6.73165919]
[1728118689073,2.73370698,2419.1,2419.0,6.73165919]
[1728118689272,2.73370698,2419.1,2419.0,3.52385919]
[1728118689574,2.73370698,2419.1,2419.0,6.44229919]
[1728118689772,2.73370698,2419.1,2419.0,8.08251829]
[1728118689970,2.73370698,2419.1,2419.0,5.43885756]
[1728118689971,4.0169837,2419.1,2419.0,5.43885756]
[1728118690476,2.90594771,2419.1,2419.0,2.23105756]
[1728118690675,2.90594771,2419.1,2419.0,5.43885756]
[1728118690676,4.01823921,2419.1,2419.0,5.43885756]
[1728118690976,4.01823921,2419.1,2419.0,5.14949756]
[1728118691373,4.01823921,2419.1,2419.0,1.94169756]
[1728118691573,4.01823921,2419.1,2419.0,5.14949756]
[1728118692477,2.39556822,2419.1,2419.0,5.14949756]
[1728118693076,2.39556822,2419.1,2419.0,6.33949756]
[1728118693270,1.71108114,2419.1,2419.0,6.33949756]
[1728118693470,1.71108114,2419.1,2419.0,3.13169756]
[1728118693674,1.28327672,2419.1,2419.0,3.13169756]
[1728118693876,2.16356132,2419.2,2419.0,3.13169756]
[1728118694180,2.16356132,2419.2,2419.1,1.3508591]
[1728118694579,3.09685165,2419.3,2419.1,1.3508591]
[1728118694767,3.09685165,2419.3,2419.0,4.68715]
[1728118694971,2.1705827,2419.1,2419.0,1.47935]
[1728118695179,2.1705827,2419.1,2419.0,2.82690994]
[1728118695981,2.1705827,2419.2,2419.1,0.28934]
[1728118696179,1.62784348,2419.2,2419.1,7.68473979]
[1728118696371,1.62784348,2419.3,2419.2,0.28933]
[1728118696681,1.62784348,2419.3,2419.2,6.89335222]
[1728118697175,1.62784348,2419.4,2419.2,6.60402222]
[1728118697373,1.62784348,2419.4,2419.3,6.03467994]
[1728118699581,1.62784348,2419.4,2419.3,6.03298414]
[1728118700177,1.62784348,2419.4,2419.3,6.34602481]
[1728118700375,1.62784348,2419.4,2419.3,3.13822481]
[1728118704280,2.7100228,2419.4,2419.3,0.86204672]
[1728118705575,1.08217932,2419.4,2419.3,2.20739136]
[1728118707285,1.08217932,2419.4,2419.3,0.86204672]
[1728118707583,1.08217932,2419.4,2419.3,4.06984672]
[1728118707988,1.08217932,2419.4,2419.3,0.86204672]
[1728118708188,2.04094348,2419.5,2419.3,4.06984672]
[1728118708386,1.06355075,2419.4,2419.3,0.86204672]
[1728118708884,1.06355075,2419.4,2419.3,4.06984672]
[1728118709284,2.37415463,2419.4,2419.3,4.06984672]
[1728118709689,2.37415463,2419.4,2419.3,0.86204672]
[1728118709987,2.37415463,2419.4,2419.3,0.57272672]
[1728118710191,2.37415463,2419.4,2419.3,3.78052672]
[1728118710395,1.06355075,2419.4,2419.3,3.78052672]
[1728118710583,1.06355075,2419.4,2419.3,0.57272672]
[1728118710782,1.06355075,2419.4,2419.3,1.91785428]
[1728118710982,1.06355075,2419.4,2419.3,0.57272672]
[1728118711990,1.09761267,2419.4,2419.3,0.57272672]
[1728118714695,1.09761267,2419.4,2419.3,0.86204672]
[1728118715286,2.04094348,2419.5,2419.3,0.86204672]
[1728118715486,0.41658109,2419.4,2419.3,0.86204672]
[1728118715789,0.41658109,2419.4,2419.3,1.26434672]
[1728118715790,2.71095431,2419.4,2419.3,1.26434672]
[1728118718894,2.70195725,2419.4,2419.3,1.26434672]
[1728118719290,2.70195725,2419.4,2419.3,0.33401994]
[1728118719711,1.07411377,2419.4,2419.3,0.62333994]
[1728118719897,1.07411377,2419.4,2419.3,2.11834979]
[1728118720594,2.37592065,2419.4,2419.3,2.11834979]
[1728118721699,2.37592065,2419.4,2419.3,1.82902979]
[1728118722092,2.42102161,2419.4,2419.3,1.82902979]
[1728118722890,2.42102161,2419.4,2419.3,5.03682979]
[1728118723391,2.42102161,2419.4,2419.3,1.82902979]
[1728118723591,2.42102161,2419.4,2419.3,5.32614979]
[1728118724899,2.42102161,2419.4,2419.3,2.11834979]
[1728118725397,1.30180688,2419.4,2419.3,5.32614979]
[1728118725594,2.4211907,2419.4,2419.3,5.32614979]
[1728118725794,0.83638382,2419.4,2419.3,10.80422783]
[1728118726399,0.21626124,2419.4,2419.3,21.65439834]
[1728118726996,0.21626124,2419.4,2419.3,21.64514234]
[1728118727795,0.21626124,2419.4,2419.3,15.64514234]
[1728118728403,0.21626124,2419.4,2419.3,15.64415504]
[1728118728599,0.21626124,2419.4,2419.3,10.80088722]
[1728118729697,0.21626124,2419.4,2419.3,21.64371868]
[1728118730907,0.21626124,2419.4,2419.3,17.51011868]
[1728118731196,0.21626124,2419.4,2419.3,21.64371868]
[1728118731397,0.4232,2420.0,2419.7,0.28926]
[1728118731602,0.8503,2420.0,2419.9,1.19]
[1728118731995,1.62784348,2420.2,2419.9,1.19]
[1728118732205,1.62784348,2420.2,2419.8,4.4002]
[1728118732206,2.05494348,2420.2,2420.1,1.19]
[1728118732505,0.4271,2420.2,2420.1,1.19]
[1728118733802,0.4271,2420.2,2420.1,1.57145201]
[1728118738307,0.4271,2420.2,2420.1,1.86067201]
[1728118740404,0.4271,2420.2,2420.1,1.57145201]
[1728118741000,2.5976827,2420.2,2420.1,1.57145201]
[1728118741210,0.4271,2420.2,2420.1,1.57145201]
[1728118741408,2.5976827,2420.2,2420.1,1.86067201]
[1728118743301,2.99072598,2420.2,2420.1,1.86067201]
[1728118743708,0.82014328,2420.2,2420.1,1.86067201]
[1728118747508,0.82002131,2420.2,2420.1,1.86067201]
[1728118749800,0.82002131,2420.2,2419.9,3.6301]
[1728118750006,0.82002131,2420.2,2419.9,3.2078]
[1728118750007,0.39292131,2420.1,2419.9,3.2078]
[1728118750311,0.4271,2420.2,2419.9,4.79055]
[1728118750312,0.39292131,2420.0,2419.9,4.79055]
[1728118750710,0.4271,2420.2,2420.0,0.28923]
[1728118750910,0.4271,2420.2,2420.1,0.3965]
[1728118751206,0.81998552,2420.2,2420.1,1.87572]
[1728118755510,0.81998552,2420.2,2420.1,1.5865]
[1728118755712,0.81998552,2420.2,2420.1,1.19]
[1728118756109,0.4271,2420.2,2420.1,1.19]
[1728118756510,0.82102509,2420.2,2420.1,1.19]
[1728118759422,0.82102509,2420.2,2420.1,1.47922]
[1728118760419,0.4271,2420.2,2420.1,1.47922]
[1728118760722,0.8211266,2420.2,2420.1,1.47922]
[1728118762711,1.49061065,2420.2,2420.1,1.47922]
[1728118766918,0.4271,2420.2,2420.1,1.47922]
[1728118767127,1.5137379,2420.2,2420.1,1.47922]
[1728118767727,0.84503765,2420.2,2420.1,1.47922]
[1728118770230,0.82374777,2420.2,2420.1,1.47922]
[1728118770822,2.44473101,2420.2,2420.1,1.47922]
[1728118771623,2.44473101,2420.2,2420.1,1.19]
[1728118772023,2.44473101,2420.2,2420.1,1.47922]
[1728118772532,2.44473101,2420.2,2420.1,2.55798786]
[1728118772826,4.39854612,2420.2,2420.1,2.55798786]
[1728118773429,3.32231049,2420.2,2420.1,2.55798786]
[1728118773623,3.74711896,2420.2,2420.1,1.26626685]
[1728118773828,4.42681251,2420.2,2420.1,2.45626685]
[1728118774428,2.80582927,2420.2,2420.1,2.45626685]
[1728118775128,4.43147883,2420.2,2420.1,2.45626685]
[1728118775318,4.43147883,2420.2,2420.1,3.80020517]
[1728118775319,2.80582927,2420.2,2420.1,3.80020517]
[1728118776418,4.97641197,2420.2,2420.1,4.33938141]
[1728118776627,4.92817681,2420.2,2420.1,4.33938141]
[1728118778926,4.92817681,2420.2,2420.1,4.34021587]
[1728118780128,4.92860549,2420.2,2420.1,4.34021587]
[1728118782234,4.92860549,2420.2,2420.1,3.41018342]
[1728118782434,4.92860549,2420.2,2420.1,3.81408342]
[1728118782827,4.92860549,2420.2,2420.1,4.10330342]
[1728118783128,4.98276835,2420.2,2420.1,4.10330342]
[1728118783528,4.98276835,2420.2,2420.1,2.8115918]
[1728118783728,4.55566835,2420.2,2420.1,3.22775199]
[1728118784035,2.38508565,2420.2,2420.1,5.38766408]
[1728118784430,2.38508565,2420.2,2420.1,3.22775199]
[1728118784929,0.42725323,2420.2,2420.1,5.38766408]
[1728118785534,0.42725323,2420.2,2420.1,8.59546408]
[1728118786039,2.054228,2420.2,2420.1,11.29871115]
[1728118786241,1.62697477,2420.2,2420.1,11.29871115]
[1728118786531,2.01607387,2420.2,2420.1,8.59546408]
[1728118787032,2.01607387,2420.2,2420.1,11.29852249]
[1728118787223,2.01607387,2420.2,2420.1,15.9747934]
[1728118787224,0.3890991,2420.2,2420.1,15.9747934]
[1728118787425,1.62697477,2420.4,2420.1,15.6855734]
[1728118787624,1.62697477,2420.4,2420.3,1.4792]
[1728118787828,1.62697477,2420.4,2420.3,2.82383199]
[1728118788029,1.62697477,2420.4,2420.3,3.24373199]
[1728118788533,1.62697477,2420.4,2420.3,3.24835487]
[1728118790641,1.62697477,2420.5,2420.3,3.24835487]
[1728118790838,1.62697477,2420.5,2420.4,4.04116856]
[1728118791139,1.62559393,2420.5,2420.4,4.04116856]
[1728118791344,1.62559281,2420.5,2420.4,4.04116856]
[1728118791842,1.62559281,2420.5,2420.4,4.04032843]
[1728118791843,3.51114362,2420.5,2420.4,4.04032843]
[1728118792437,3.51114362,2420.5,2420.4,2.98110369]
[1728118792632,3.51114362,2420.5,2420.4,4.32936214]
[1728118792838,3.51114362,2420.5,2420.4,2.98110369]
[1728118793037,3.51114362,2420.5,2420.4,4.32934432]
[1728118793038,2.85529986,2420.5,2420.4,4.32934432]
[1728118793341,3.51107436,2420.5,2420.4,2.69191369]
[1728118795441,3.51107436,2420.5,2420.4,2.98110369]
[1728118795642,3.51107436,2420.5,2420.4,3.34979926]
[1728118795837,3.51107436,2420.5,2420.4,3.06060926]
[1728118796037,2.85529986,2420.5,2420.4,3.06060926]
[1728118796541,3.51093051,2420.5,2420.4,3.06060926]
[1728118797240,3.51093051,2420.5,2420.4,2.1306932]
[1728118797840,2.28122346,2420.5,2420.4,2.1306932]
[1728118799544,2.68388051,2420.5,2420.4,2.1306932]
[1728118799747,2.68388051,2420.5,2420.4,1.55869557]
[1728118799948,2.67250231,2420.5,2420.4,1.55869557]
[1728118800544,3.08850231,2420.5,2420.4,1.55869557]
[1728118800947,4.37979909,2420.5,2420.4,1.55869557]
[1728118801148,4.37979909,2420.5,2420.4,0.26713577]
[1728118801449,3.33288959,2420.5,2420.3,3.91689]
[1728118801751,2.81079576,2420.4,2420.3,3.91689]
[1728118801937,1.51949898,2420.4,2420.3,6.45242339]
[1728118803338,1.51949898,2420.4,2420.3,3.24462339]
[1728118804639,1.51949898,2420.4,2420.3,1.89909]
[1728118804845,1.51949898,2420.4,2420.3,3.62234634]
[1728118805056,0.80631636,2420.4,2420.3,3.62234634]
[1728118805237,1.45578254,2420.4,2420.3,3.62234634]
[1728118805438,1.45578254,2420.4,2420.3,2.2768546]
[1728118805948,1.45578254,2420.4,2420.3,3.62233619]
[1728118806245,1.45578254,2420.4,2420.3,2.2768546]
[1728118806447,1.45578254,2420.4,2420.3,1.9876646]
[1728118807353,1.45578254,2420.4,2420.3,2.2768646]
[1728118808652,0.4004,2420.4,2420.3,2.2768646]
[1728118808953,1.44033393,2420.4,2420.3,2.2768646]
[1728118810749,1.44033393,2420.4,2420.3,1.9876646]
[1728118812050,2.72362921,2420.4,2420.3,1.9876646]
[1728118812349,2.79588553,2420.4,2420.3,1.8569646]
[1728118812952,1.51259025,2420.4,2420.3,1.8569646]
[1728118813455,1.51259025,2420.4,2420.3,1.5677646]
[1728118814554,3.13818306,2420.4,2420.3,1.8569646]
[1728118814857,1.51259025,2420.4,2420.3,1.5677646]
[1728118815851,1.51259025,2420.4,2420.3,1.8569646]
[1728118816557,1.45613408,2420.4,2420.3,1.8569646]
[1728118816753,1.45613408,2420.4,2420.3,1.5677646]
[1728118817555,1.45613408,2420.4,2420.3,1.8569646]
[1728118818055,3.08172689,2420.4,2420.2,4.8013]
[1728118818258,1.05573408,2420.3,2420.0,2.54995562]
[1728118818456,3.49542689,2420.2,2419.9,5.37375562]
[1728118818753,1.05573408,2420.1,2420.0,2.53615234]
[1728118818959,1.45963408,2420.1,2420.0,2.53615234]
[1728118819360,1.45963408,2420.1,2420.0,2.82539234]
[1728118819659,1.45963408,2420.1,2420.0,2.53615234]
[1728118820050,3.03835086,2420.1,2420.0,2.53615234]
[1728118821056,1.45963408,2420.1,2420.0,2.53669636]
[1728118822055,3.04374021,2420.1,2420.0,2.53669636]
[1728118822257,3.13698733,2420.1,2420.0,2.53669636]
[1728118822456,3.13698733,2420.1,2420.0,2.82593636]
[1728118822962,3.13698733,2420.1,2420.0,2.53669636]
[1728118823362,3.13698733,2420.1,2420.0,2.82593636]
[1728118823861,0.26850221,2420.1,2420.0,6.95793636]
[1728118824060,0.26850221,2420.1,2420.0,12.65289776]
[1728118824864,0.26850221,2420.1,2420.0,12.65164223]
[1728118825167,0.26850221,2420.1,2420.0,10.48694214]
[1728118825351,1.62559281,2420.4,2420.3,0.2892]
[1728118825667,2.02469281,2420.5,2420.4,0.28919]
[1728118825956,2.02469281,2420.5,2420.4,0.69789]
[1728118826161,2.02469281,2420.5,2420.4,0.4087]
[1728118827260,2.02431265,2420.5,2420.3,1.75437156]
[1728118827568,0.3991,2420.5,2420.4,1.19]
[1728118829167,0.3991,2420.5,2420.4,1.47919]
[1728118831565,0.3991,2420.5,2420.4,2.82608179]
[1728118832166,0.3991,2420.5,2420.4,1.53453334]
[1728118832460,0.3991,2420.5,2420.4,2.53689179]
[1728118832663,0.3991,2420.5,2420.4,2.82608179]
[1728118833066,0.3991,2420.5,2420.4,2.53689179]
[1728118833271,2.5696827,2420.5,2420.3,5.58299]
[1728118833577,2.5696827,2420.5,2420.3,4.3978]
[1728118833864,3.58106879,2420.4,2420.3,4.687]
[1728118834164,3.58106879,2420.4,2420.3,5.74483475]
[1728118834562,2.90094673,2420.4,2420.3,5.74483475]
[1728118834769,3.5754892,2420.4,2420.3,5.74483475]
[1728118835169,3.5754892,2420.4,2420.3,2.53703475]
[1728118835562,3.5754892,2420.4,2420.3,2.53703085]
[1728118835766,3.5754892,2420.4,2420.3,5.74483085]
[1728118835967,3.99708036,2420.4,2420.3,5.74483085]
[1728118838366,3.99708036,2420.4,2420.3,2.53703085]
[1728118838673,3.99708036,2420.4,2420.3,5.74483085]
[1728118840075,3.99708036,2420.4,2420.3,2.53703085]
[1728118840275,3.99714028,2420.4,2420.3,5.74483085]
[1728118840467,3.99714028,2420.4,2420.3,6.03405922]
[1728118840668,2.371329,2420.4,2420.3,6.43315922]
[1728118840972,3.99717233,2420.4,2420.3,6.43315922]
[1728118841278,3.98272786,2420.4,2420.3,6.43315922]
[1728118841969,3.98272786,2420.4,2420.3,6.14395922]
[1728118842168,2.35688453,2420.4,2420.3,6.14395922]
[1728118842473,2.35688453,2420.4,2420.3,5.21400266]
[1728118842986,3.98275035,2420.4,2420.3,5.21400266]
[1728118843269,4.24106896,2420.4,2420.3,4.2116096]
[1728118843469,4.24106896,2420.4,2420.3,5.54679599]
[1728118843869,2.61520314,2420.4,2420.3,5.54679599]
[1728118844068,2.61520314,2420.4,2420.3,3.9224096]
[1728118844277,1.27519537,2420.4,2420.3,3.9224096]
[1728118844463,1.27519537,2420.4,2420.3,5.54679599]
[1728118844663,2.33208403,2420.4,2420.3,5.54679599]
[1728118844870,2.33208403,2420.4,2420.3,0.7146096]
[1728118845268,2.33208403,2420.4,2420.3,2.02348639]
[1728118845467,3.95796701,2420.4,2420.3,2.02348639]
[1728118845672,2.33208403,2420.4,2420.3,2.02348639]
[1728118845867,3.95799184,2420.4,2420.3,2.02348639]
[1728118847470,2.33208403,2420.4,2420.3,2.31268639]
[1728118847776,2.33209785,2420.4,2420.3,2.31268639]
[1728118848168,2.33209785,2420.4,2420.3,3.50268639]
[1728118850374,3.95804857,2420.4,2420.3,3.50268639]
[1728118850783,2.33209785,2420.4,2420.3,3.50268639]
[1728118850976,1.27519537,2420.4,2420.3,3.21348639]
[1728118851277,4.50271663,2420.4,2420.3,0.3991]
[1728118852569,2.33213393,2420.4,2420.3,0.3991]
[1728118853173,2.33213393,2420.4,2420.3,3.21348639]
[1728118853381,2.33213393,2420.4,2420.3,2.81438639]
[1728118853979,4.50271663,2420.4,2420.3,1.19]
[1728118854175,2.33213393,2420.4,2420.3,1.19]
[1728118854382,2.38657478,2420.4,2420.3,1.19]
[1728118857378,2.38657478,2420.4,2420.3,0.2600348]
[1728118858889,2.38657478,2420.4,2420.3,1.88442119]
[1728118859292,2.38657478,2420.4,2420.3,0.2600348]